fUST/lending_fUST_20250315
["ID","MTS","AMOUNT","RATE_DAILY","PERIOD"]
[356182749,1742040636257,-500.0,8.219e-05,2]
[356182750,1742040636267,-500.0,8.219e-05,2]
[356182751,1742040636278,-500.0,8.219e-05,2]
[356182752,1742040636292,-500.0,8.219e-05,2]
[356182753,1742040636303,-500.0,8.219e-05,2]
[356182754,1742040636315,-500.0,8.219e-05,2]
[356182755,1742040636325,-508.59403763,8.219e-05,2]
[356182756,1742040636335,-500.0,8.219e-05,2]
[356182757,1742040636346,-522.64990552,8.219e-05,2]
[356182758,1742040636356,-500.0,8.219e-05,2]
[356182759,1742040636366,-606.86,8.219e-05,2]
[356182760,1742040636376,-500.0,8.219e-05,2]
[356182761,1742040636386,-500.0,8.219e-05,2]
[356182762,1742040636396,-500.0,8.219e-05,2]
[356182763,1742040636407,-500.0,8.219e-05,2]
[356182764,1742040636417,-500.0,8.219e-05,2]
[356182765,1742040636426,-500.0,8.219e-05,2]
[356182766,1742040636436,-500.0,8.219e-05,2]
[356182767,1742040636447,-567.12,8.219e-05,2]
[356182768,1742040636457,-500.0,8.219e-05,2]
[356182769,1742040636468,-507.25619943,8.219e-05,2]
[356182770,1742040636477,-500.0,8.219e-05,2]
[356182771,1742040636487,-500.0,8.219e-05,2]
[356182772,1742040636496,-500.0,8.219e-05,2]
[356182773,1742040636506,-500.0,8.219e-05,2]
[356182774,1742040636516,-500.0,8.219e-05,2]
[356182775,1742040636527,-500.0,8.219e-05,2]
[356182776,1742040636537,-500.0,8.219e-05,2]
[356182777,1742040636548,-500.0,8.219e-05,2]
[356182778,1742040636558,-500.0,8.219e-05,2]
[356182779,1742040636568,-500.0,8.219e-05,2]
[356182780,1742040636578,-500.0,8.219e-05,2]
[356182781,1742040636588,-500.0,8.219e-05,2]
[356182782,1742040636598,-500.0,8.219e-05,2]
[356182783,1742040636608,-500.0,8.219e-05,2]
[356182784,1742040636618,-500.0,8.219e-05,2]
[356182785,1742040636627,-500.0,8.219e-05,2]
[356182786,1742040636637,-500.0,8.219e-05,2]
[356182787,1742040636647,-500.0,8.219e-05,2]
[356182788,1742040636657,-500.0,8.219e-05,2]
[356182789,1742040636667,-500.0,8.219e-05,2]
[356182790,1742040636677,-500.0,8.219e-05,2]
[356182791,1742040636691,-670.5,8.219e-05,2]
[356182792,1742040636701,-500.0,8.219e-05,2]
[356182793,1742040636711,-500.0,8.219e-05,2]
[356182794,1742040636721,-500.0,8.219e-05,2]
[356182795,1742040636732,-500.0,8.219e-05,2]
[356182796,1742040636741,-500.0,8.219e-05,2]
[356182797,1742040636751,-538.18,8.219e-05,2]
[356182798,1742040636764,-500.0,8.219e-05,2]
[356182799,1742040636775,-500.0,8.219e-05,2]
[356182800,1742040636785,-500.0,8.219e-05,2]
[356182801,1742040636795,-500.0,8.219e-05,2]
[356182802,1742040636805,-500.0,8.219e-05,2]
[356182803,1742040636815,-500.0,8.219e-05,2]
[356182804,1742040636825,-500.0,8.219e-05,2]
[356182805,1742040636835,-500.0,8.219e-05,2]
[356182806,1742040636846,-807.04,8.219e-05,2]
[356182807,1742040636855,-500.0,8.219e-05,2]
[356182808,1742040636865,-500.0,8.219e-05,2]
[356182809,1742040636875,-500.0,8.219e-05,2]
[356182810,1742040636885,-504.70059105,8.219e-05,2]
[356182811,1742040636895,-500.0,8.219e-05,2]
[356182812,1742040636904,-500.0,8.219e-05,2]
[356182813,1742040636916,-512.04164007,8.219e-05,2]
[356182814,1742040636926,-500.0,8.219e-05,2]
[356182815,1742040636935,-500.0,8.219e-05,2]
[356182816,1742040636945,-500.0,8.219e-05,2]
[356182817,1742040636954,-500.0,8.219e-05,2]
[356182818,1742040636964,-637.97783666,8.219e-05,2]
[356182819,1742040636974,-500.0,8.219e-05,2]
[356182820,1742040636984,-500.0,8.219e-05,2]
[356182821,1742040636994,-500.0,8.219e-05,2]
[356182822,1742040637003,-500.0,8.219e-05,2]
[356182823,1742040637014,-1343.21,8.219e-05,2]
[356182824,1742040637024,-500.0,8.219e-05,2]
[356182825,1742040637034,-500.0,8.219e-05,2]
[356182826,1742040637045,-511.87868561,8.219e-05,2]
[356182827,1742040637055,-500.0,8.219e-05,2]
[356182828,1742040637065,-500.0,8.219e-05,2]
[356182829,1742040637074,-500.0,8.219e-05,2]
[356182830,1742040637084,-500.0,8.219e-05,2]
[356182831,1742040637094,-512.07079791,8.219e-05,2]
[356182832,1742040637104,-500.0,8.219e-05,2]
[356182833,1742040637113,-689.13,8.219e-05,2]
[356182834,1742040637123,-500.0,8.219e-05,2]
[356182835,1742040637131,-500.0,8.219e-05,2]
[356182836,1742040637141,-500.0,8.219e-05,2]
[356182837,1742040637151,-500.0,8.219e-05,2]
[356182838,1742040637161,-500.0,8.219e-05,2]
[356182839,1742040637171,-500.0,8.219e-05,2]
[356182840,1742040637181,-500.0,8.219e-05,2]
[356182841,1742040637190,-500.0,8.219e-05,2]
[356182842,1742040637200,-700.06,8.219e-05,2]
[356182843,1742040637210,-500.0,8.219e-05,2]
[356182844,1742040637220,-500.0,8.219e-05,2]
[356182845,1742040637230,-513.89989247,8.219e-05,2]
[356182846,1742040637240,-819.39,8.219e-05,2]
[356182847,1742040637250,-500.0,8.219e-05,2]
[356182848,1742040637260,-500.0,8.219e-05,2]
[356182849,1742040637269,-477.97968364,8.219e-05,2]
[356182850,1742040637289,-22.02031636,8.219e-05,2]
[356182851,1742040637299,-446.01968364,8.219e-05,2]
[356182937,1742040646423,-151.0,8.018e-05,2]
[356182938,1742040646434,-748.02119,8.026e-05,2]
[356182941,1742040706115,27734.144118,0.00014001,30]
[356182945,1742041174806,9546.161795,0.00014001,30]
[356183026,1742042081670,-300.0,6.616e-05,2]
[356183027,1742042157923,300.0,0.00011,6]
[356183050,1742043037826,-195.7516167,6.501e-05,2]
[356183051,1742043037836,-44.5405703,6.616e-05,2]
[356183052,1742043037845,-834.96754831,7.054e-05,2]
[356183053,1742043037855,-834.96754831,7.191e-05,2]
[356183054,1742043037865,-834.96754831,7.431e-05,2]
[356183055,1742043037875,-248.93032725,7.518e-05,2]
[356183056,1742043037884,-281.41324188,7.518e-05,2]
[356183057,1742043037896,-59.86004707,7.518e-05,2]
[356183058,1742043037905,-300.0,7.518e-05,2]
[356183059,1742043037914,-1824.49906493,7.519e-05,2]
[356183109,1742043045992,-576.09331592,7.519e-05,2]
[356183110,1742043046049,-22157.90808376,7.519e-05,2]
[356183112,1742043374947,210.163454,0.0001078,6]
[356183114,1742043997587,175.484008,0.00014001,30]
[356183127,1742044232120,-422.9296164,6.903e-05,2]
[356183128,1742044232130,-151.27175985,7.569e-05,2]
[356183129,1742044232142,-348.72824015,7.569e-05,2]
[356183130,1742044232152,-198.79513856,7.61e-05,2]
[356183170,1742044243058,-848.3932862,7.61e-05,2]
[356183175,1742044246283,-4398.29217274,7.61e-05,2]
[356183176,1742044246294,-834.96754831,7.773e-05,2]
[356183177,1742044246305,-300.0,7.898e-05,2]
[356183178,1742044246315,-35.42222494,7.899e-05,2]
[356183233,1742045432421,-300.0,7.798e-05,2]
[356183236,1742045432431,-163.62456159,7.799e-05,2]
[356183238,1742045432440,-500.0,7.799e-05,2]
[356183240,1742045432450,-385.16665928,7.799e-05,2]
[356183260,1742045438061,-114.83334072,7.799e-05,2]
[356183261,1742045438071,-391.11265928,7.799e-05,2]
[356183262,1742045438084,-108.88734072,7.799e-05,2]
[356183263,1742045438094,-565.6321151,7.799e-05,2]
[356183264,1742045438104,-362.11359875,7.799e-05,2]
[356183265,1742045438114,-500.0,7.799e-05,2]
[356183266,1742045438124,-7243.27587036,7.8e-05,2]
[356183274,1742045440449,-161.46103008,7.8e-05,2]
[356183303,1742045523752,300.0,0.00011,10]
[356183304,1742045967597,2344.52413176,0.00011,10]
[356183305,1742046068235,10000.0,0.00014001,30]
[356183306,1742046086994,1000.0,0.00011,6]
[356183309,1742046555132,-422.66015378,6.506e-05,2]
[356183310,1742046555153,-458.89511327,6.595e-05,2]
[356183333,1742046632494,-41.10488673,6.595e-05,2]
[356183334,1742046632507,-500.0,6.848e-05,2]
[356183335,1742046632519,-500.0,7.208e-05,2]
[356183336,1742046632530,-300.0,7.396e-05,2]
[356183337,1742046632541,-19013.9888622,7.397e-05,2]
[356183338,1742046632552,-500.0,7.588e-05,2]
[356183339,1742046632563,-500.0,7.788e-05,2]
[356183340,1742046632574,-500.0,7.796e-05,2]
[356183341,1742046632586,-512.61932297,7.796e-05,2]
[356183342,1742046632597,-500.0,7.796e-05,2]
[356183343,1742046632609,-500.0,7.796e-05,2]
[356183344,1742046632620,-500.0,7.796e-05,2]
[356183345,1742046632631,-500.0,7.796e-05,2]
[356183346,1742046632643,-500.0,7.796e-05,2]
[356183348,1742046632654,-500.0,7.796e-05,2]
[356183349,1742046632665,-500.0,7.796e-05,2]
[356183350,1742046632676,-9704.21416862,7.797e-05,2]
[356183351,1742046632687,-13777.83519419,7.799e-05,2]
[356183352,1742046632698,-158.34939497,7.8e-05,2]
[356183353,1742046632709,-151.0,7.898e-05,2]
[356183354,1742046632720,-500.0,7.898e-05,2]
[356183355,1742046632736,-518.50327038,7.899e-05,2]
[356183356,1742046632748,-64618.18500304,7.9e-05,2]
[356183357,1742046632769,-575.79452204,7.9e-05,2]
[356183358,1742046632794,-26521.3935237,7.9e-05,2]
[356183425,1742046646429,-10855.0218325,7.9e-05,2]
[356183430,1742047095999,1000.0,0.0001455,99]
[356183431,1742047160152,2400.01,0.00014001,30]
[356183441,1742047832901,-200.0211179,6.543e-05,2]
[356183442,1742047832911,-200.0211179,6.675e-05,2]
[356183443,1742047832923,-850.121094,7.397e-05,2]
[356183444,1742047832933,-300.0,7.798e-05,2]
[356183445,1742047832942,-579.33463499,7.799e-05,2]
[356183488,1742047840978,-200.0211179,6.478e-05,2]
[356183489,1742047840988,-428.65349306,7.799e-05,2]
[356183490,1742047840999,-500.0,7.799e-05,2]
[356183491,1742047841011,-439.73428008,7.799e-05,2]
[356183492,1742047841037,-60.26571992,7.799e-05,2]
[356183493,1742047841047,-452.10859697,7.799e-05,2]
[356183500,1742047843757,-17.99092382,7.799e-05,2]
[356183570,1742047846760,-63.00730613,7.799e-05,2]
[356183571,1742047846770,-194.69006244,7.799e-05,2]
[356183573,1742047846781,-500.0,7.799e-05,2]
[356183575,1742047846791,-500.0,7.799e-05,2]
[356183577,1742047846800,-500.0,7.799e-05,2]
[356183580,1742047846810,-500.0,7.799e-05,2]
[356183582,1742047846820,-500.0,7.799e-05,2]
[356183585,1742047846830,-500.0,7.799e-05,2]
[356183588,1742047846840,-222000.0,7.8e-05,2]
[356183590,1742047846850,-206.84569796,7.899e-05,2]
[356183593,1742047846859,-344.99579567,7.899e-05,2]
[356183594,1742047846869,-344.99579563,7.924e-05,2]
[356183596,1742047846879,-306.0,7.93e-05,2]
[356183598,1742047846889,-150.0,7.943e-05,2]
[356183600,1742047846899,-2269.0,7.943e-05,2]
[356183602,1742047846909,-540.0,7.943e-05,2]
[356183604,1742047846918,-1912.0,7.943e-05,2]
[356183606,1742047846928,-399.0,7.943e-05,2]
[356183608,1742047846937,-3298.0,7.944e-05,2]
[356183609,1742047846947,-344.99579563,7.95e-05,2]
[356183610,1742047846956,-500.0,7.973e-05,2]
[356183612,1742047846966,-500.0,7.973e-05,2]
[356183614,1742047846976,-500.0,7.973e-05,2]
[356183615,1742047846986,-500.0,7.973e-05,2]
[356183616,1742047846995,-500.0,7.973e-05,2]
[356183617,1742047847005,-500.0,7.973e-05,2]
[356183618,1742047847015,-500.0,7.973e-05,2]
[356183619,1742047847025,-500.0,7.973e-05,2]
[356183620,1742047847034,-500.0,7.973e-05,2]
[356183621,1742047847044,-161.76600441,7.973e-05,2]
[356183622,1742047847054,-500.0,7.973e-05,2]
[356183623,1742047847063,-500.0,7.973e-05,2]
[356183624,1742047847074,-500.0,7.973e-05,2]
[356183625,1742047847084,-500.0,7.973e-05,2]
[356183626,1742047847093,-500.0,7.973e-05,2]
[356183627,1742047847103,-500.0,7.973e-05,2]
[356183628,1742047847112,-155.9611258,7.973e-05,2]
[356183629,1742047847121,-500.0,7.973e-05,2]
[356183630,1742047847131,-500.0,7.973e-05,2]
[356183631,1742047847141,-392.40020983,7.973e-05,2]
[356183632,1742047847150,-160.0,7.973e-05,2]
[356183633,1742047847160,-500.0,7.973e-05,2]
[356183634,1742047847170,-500.0,7.973e-05,2]
[356183635,1742047847179,-500.0,7.973e-05,2]
[356183636,1742047847188,-500.01219916,7.973e-05,2]
[356183637,1742047847198,-500.0,7.973e-05,2]
[356183638,1742047847208,-500.0,7.973e-05,2]
[356183639,1742047847217,-500.0,7.973e-05,2]
[356183640,1742047847227,-500.0,7.973e-05,2]
[356183641,1742047847237,-500.0,7.973e-05,2]
[356183642,1742047847246,-500.0,7.973e-05,2]
[356183643,1742047847256,-505.89413725,7.973e-05,2]
[356183644,1742047847265,-500.0,7.973e-05,2]
[356183645,1742047847275,-500.0,7.973e-05,2]
[356183646,1742047847285,-500.0,7.973e-05,2]
[356183647,1742047847294,-344.99579563,7.975e-05,2]
[356183648,1742047847304,-20000.0,7.983e-05,2]
[356183649,1742047847314,-500.0,7.987e-05,2]
[356183650,1742047847324,-319016.46359566,8e-05,2]
[356183651,1742047847333,-52716.60797652,8e-05,2]
[356183652,1742047847353,-2489.1300002,8e-05,2]
[356183653,1742047847364,-3965.61394076,8e-05,2]
[356183662,1742048720679,157.307952,7.114e-05,61]
[356183663,1742048720931,157.307952,7.114e-05,120]
[356183690,1742049031897,-157.307952,7.043e-05,2]
[356183692,1742049031908,-157.307952,7.114e-05,2]
[356183693,1742049031920,-150.0,7.802e-05,2]
[356183694,1742049031932,-150.0,7.802e-05,2]
[356183695,1742049031943,-300.0,7.92e-05,2]
[356183696,1742049031954,-448.12298077,7.999e-05,2]
[356183697,1742049031965,-2814.89333034,8e-05,2]
[356183698,1742049032048,-835.089223,8e-05,2]
[356183711,1742049037833,-336.892,7.92e-05,2]
[356183740,1742049046000,-1331.29648,7.92e-05,2]
[356183741,1742049046087,-685.16816848,7.92e-05,2]
[356183742,1742049046096,-399.0,7.921e-05,2]
[356183743,1742049046106,-7105.83183152,8e-05,2]
[356183744,1742049119138,6500.0,0.00014001,30]
[356183750,1742049555796,164.206734,0.00014001,30]
[356183754,1742050155072,164.206734,0.00014001,30]
[356183800,1742050232042,-182.1179144,6.989e-05,2]
[356183802,1742050232051,-300.0,7.396e-05,2]
[356183804,1742050232061,-5292.8820856,7.397e-05,2]
[356183806,1742050232072,-272.668991,7.397e-05,2]
[356183808,1742050232084,-18888.2892025,7.397e-05,2]
[356183810,1742050232094,-1912.0,7.899e-05,2]
[356183812,1742050232104,-2269.0,7.899e-05,2]
[356183814,1742050232113,-540.0,7.899e-05,2]
[356183816,1742050232123,-12791.66708358,8e-05,2]
[356183820,1742050232150,-24909.07338331,8e-05,2]
[356183822,1742050232159,-192.0229336,8e-05,2]
[356183824,1742050232169,-195.0,8e-05,2]
[356183826,1742050232179,-195.0,8e-05,2]
[356183828,1742050232188,-926.1633298,8e-05,2]
[356183830,1742050232198,-167.55250686,8.018e-05,2]
[356183832,1742050232207,-417.25163692,8.018e-05,2]
[356183834,1742050232221,-119767.87490969,8.019e-05,2]
[356184220,1742050237906,-1668.18258112,8.019e-05,2]
[356184242,1742050243163,-612.0994314,8.019e-05,2]
[356184243,1742050243190,-4026.69447328,8.019e-05,2]
[356184244,1742050243300,-494.18,8.019e-05,2]
[356184245,1742050243313,-15562.74556253,8.019e-05,2]
[356184263,1742050258837,171.309265,0.00014001,30]
[356184264,1742050272948,153.793625,0.00014001,30]
[356184265,1742050273263,153.793625,0.00014001,30]
[356184266,1742050739297,171.309265,0.00014001,30]
[356184267,1742050753928,156.396902,0.00014001,30]
[356184269,1742051354782,156.396902,0.00014001,30]
[356184308,1742051432230,-436.2470038,7.07e-05,2]
[356184310,1742051432241,-3514.3649374,7.397e-05,2]
[356184312,1742051432251,-300.0,7.9e-05,2]
[356184314,1742051432260,-150.0,7.901e-05,2]
[356184316,1742051432270,-150.0,7.901e-05,2]
[356184318,1742051432280,-1912.0,7.901e-05,2]
[356184320,1742051432289,-540.0,7.901e-05,2]
[356184323,1742051432299,-2269.0,7.901e-05,2]
[356184325,1742051432310,-399.0,7.901e-05,2]
[356184327,1742051432320,-443.3887601,8e-05,2]
[356184329,1742051432330,-153.0,8.02e-05,2]
[356184331,1742051432339,-153.0,8.02e-05,2]
[356184333,1742051432348,-307.1501895,8.02e-05,2]
[356184334,1742051432358,-153.0,8.02e-05,2]
[356184337,1742051432367,-306.0,8.02e-05,2]
[356184339,1742051432378,-153.0,8.02e-05,2]
[356184341,1742051432387,-153.0,8.02e-05,2]
[356184343,1742051432397,-153.0,8.02e-05,2]
[356184345,1742051432406,-153.0,8.02e-05,2]
[356184347,1742051432415,-153.0,8.03e-05,2]
[356184349,1742051432425,-287.2002376,8.03e-05,2]
[356184351,1742051432434,-153.0,8.03e-05,2]
[356184353,1742051432443,-153.0,8.03e-05,2]
[356184354,1742051432452,-153.0,8.06e-05,2]
[356184356,1742051432462,-153.0,8.06e-05,2]
[356184358,1742051432471,-153.0,8.06e-05,2]
[356184360,1742051432480,-153.0,8.07e-05,2]
[356184363,1742051432490,-153.0,8.07e-05,2]
[356184366,1742051432511,-153.0,8.07e-05,2]
[356184368,1742051432521,-153.0,8.07e-05,2]
[356184370,1742051432532,-440.34893605,8.099e-05,2]
[356184372,1742051432542,-451.4581694,8.099e-05,2]
[356184374,1742051432552,-10927.122514,8.1e-05,2]
[356184376,1742051432562,-153.0,8.1e-05,2]
[356184378,1742051432572,-153.0,8.1e-05,2]
[356184380,1742051432583,-153.0,8.1e-05,2]
[356184383,1742051432593,-153.0,8.1e-05,2]
[356184385,1742051432604,-153.0,8.1e-05,2]
[356184387,1742051432614,-121891.62398527,8.1e-05,2]
[356184390,1742051432633,-43558.72879709,8.1e-05,2]
[356184423,1742051438210,-464.08112466,8.1e-05,2]
[356184424,1742051438335,-7824.3646319,8.1e-05,2]
[356184430,1742051440454,-3026.45,8.1e-05,2]
[356184431,1742051440591,-3178.50936795,8.1e-05,2]
[356184446,1742051443149,-13352.56963252,8.1e-05,2]
[356184506,1742052632480,-300.0,7.97e-05,2]
[356184508,1742052632490,-399.0,7.971e-05,2]
[356184510,1742052632500,-311.0,8.118e-05,2]
[356184512,1742052632510,-308.24425523,8.118e-05,2]
[356184514,1742052632520,-26522.72994805,8.119e-05,2]
[356184524,1742052632607,-178620.30852973,8.119e-05,2]
[356184775,1742052638245,-500.0,7.971e-05,2]
[356184779,1742052640753,-1320.473,7.971e-05,2]
[356184780,1742052640764,-16856.96152222,8.119e-05,2]
[356184781,1742052640774,-276.836,8.14e-05,2]
[356184782,1742052640784,-306.0,8.18e-05,2]
[356184783,1742052640794,-500.98359949,8.193e-05,2]
[356184784,1742052640804,-521.59837808,8.193e-05,2]
[356184785,1742052640814,-158.5,8.193e-05,2]
[356184786,1742052640824,-418.77854589,8.193e-05,2]
[356184787,1742052640834,-27274.5984279,8.2e-05,2]
[356184788,1742052640844,-151.00000001,8.214e-05,2]
[356184789,1742052640854,-496.65961214,8.219e-05,2]
[356184790,1742052640864,-500.0,8.219e-05,2]
[356184791,1742052640874,-633.29018489,8.219e-05,2]
[356184792,1742052640884,-500.0,8.219e-05,2]
[356184793,1742052640894,-500.0,8.219e-05,2]
[356184794,1742052640904,-500.0,8.219e-05,2]
[356184795,1742052640914,-500.0,8.219e-05,2]
[356184796,1742052640923,-504.15591411,8.219e-05,2]
[356184797,1742052640933,-504.22709808,8.219e-05,2]
[356184798,1742052640943,-500.0,8.219e-05,2]
[356184799,1742052640953,-500.0,8.219e-05,2]
[356184800,1742052640963,-500.0,8.219e-05,2]
[356184801,1742052640973,-500.0,8.219e-05,2]
[356184802,1742052640982,-650.26,8.219e-05,2]
[356184803,1742052640992,-500.0,8.219e-05,2]
[356184804,1742052641002,-500.0,8.219e-05,2]
[356184805,1742052641012,-500.0,8.219e-05,2]
[356184806,1742052641021,-500.0,8.219e-05,2]
[356184807,1742052641031,-510.58263984,8.219e-05,2]
[356184808,1742052641041,-500.0,8.219e-05,2]
[356184809,1742052641051,-500.0,8.219e-05,2]
[356184810,1742052641061,-500.0,8.219e-05,2]
[356184811,1742052641070,-500.0,8.219e-05,2]
[356184812,1742052641079,-505.97374685,8.219e-05,2]
[356184813,1742052641089,-500.0,8.219e-05,2]
[356184814,1742052641098,-500.0,8.219e-05,2]
[356184815,1742052641108,-500.0,8.219e-05,2]
[356184816,1742052641117,-500.0,8.219e-05,2]
[356184817,1742052641127,-500.0,8.219e-05,2]
[356184818,1742052641136,-500.0,8.219e-05,2]
[356184819,1742052641145,-232.93293388,8.219e-05,2]
[356184820,1742052641155,-500.0,8.219e-05,2]
[356184821,1742052641165,-500.0,8.219e-05,2]
[356184822,1742052641175,-500.0,8.219e-05,2]
[356184823,1742052641184,-500.0,8.219e-05,2]
[356184824,1742052641194,-500.0,8.219e-05,2]
[356184825,1742052641204,-500.0,8.219e-05,2]
[356184826,1742052641217,-500.0,8.219e-05,2]
[356184827,1742052641226,-500.0,8.219e-05,2]
[356184828,1742052641236,-500.0,8.219e-05,2]
[356184829,1742052641247,-500.0,8.219e-05,2]
[356184830,1742052641257,-500.0,8.219e-05,2]
[356184831,1742052641266,-500.0,8.219e-05,2]
[356184832,1742052641275,-416.71717734,8.219e-05,2]
[356184833,1742052641285,-500.0,8.219e-05,2]
[356184834,1742052641296,-500.0,8.219e-05,2]
[356184835,1742052641305,-500.0,8.219e-05,2]
[356184836,1742052641315,-500.0,8.219e-05,2]
[356184837,1742052641324,-500.0,8.219e-05,2]
[356184838,1742052641333,-500.0,8.219e-05,2]
[356184839,1742052641342,-500.0,8.219e-05,2]
[356184840,1742052641351,-500.0,8.219e-05,2]
[356184841,1742052641360,-500.0,8.219e-05,2]
[356184842,1742052641369,-500.0,8.219e-05,2]
[356184843,1742052641378,-500.0,8.219e-05,2]
[356184844,1742052641388,-466.51394581,8.219e-05,2]
[356184845,1742052641398,-508.68831741,8.219e-05,2]
[356184846,1742052641407,-500.0,8.219e-05,2]
[356184847,1742052641416,-500.0,8.219e-05,2]
[356184848,1742052641425,-500.0,8.219e-05,2]
[356184849,1742052641434,-500.0,8.219e-05,2]
[356184850,1742052641444,-500.0,8.219e-05,2]
[356184851,1742052641453,-500.0,8.219e-05,2]
[356184852,1742052641462,-500.0,8.219e-05,2]
[356184853,1742052641471,-500.0,8.219e-05,2]
[356184854,1742052641481,-500.0,8.219e-05,2]
[356184855,1742052641490,-500.0,8.219e-05,2]
[356184856,1742052641499,-500.0,8.219e-05,2]
[356184857,1742052641509,-160.27700975,8.219e-05,2]
[356184890,1742052644999,-540.0,7.971e-05,2]
[356184891,1742052645009,-339.72299025,8.219e-05,2]
[356184892,1742052645019,-500.0,8.219e-05,2]
[356184893,1742052645029,-500.0,8.219e-05,2]
[356184894,1742052645039,-372.58013385,8.219e-05,2]
[356184895,1742052645049,-502.76435969,8.219e-05,2]
[356184896,1742052645060,-500.0,8.219e-05,2]
[356184897,1742052645070,-500.0,8.219e-05,2]
[356184898,1742052645080,-500.0,8.219e-05,2]
[356184899,1742052645090,-83.37646841,8.219e-05,2]
[356184900,1742052646467,-416.62353159,8.219e-05,2]
[356184901,1742052646477,-500.0,8.219e-05,2]
[356184902,1742052646487,-68.71404047,8.219e-05,2]
[356184923,1742052918206,-684.273,7.971e-05,2]
[356184924,1742052918233,-300.0,8.018e-05,2]
[356184925,1742052918259,-84283.55368264,8.019e-05,2]
[356184926,1742052918285,-316.77391936,8.099e-05,2]
[356184927,1742052918314,-500.0,8.193e-05,2]
[356184928,1742052918573,-500.0,8.193e-05,2]
[356184929,1742052918600,-500.0,8.193e-05,2]
[356184930,1742052918624,-500.0,8.193e-05,2]
[356184931,1742052918649,-528.7791108,8.193e-05,2]
[356184932,1742052918675,-500.0,8.193e-05,2]
[356184933,1742052918700,-500.0,8.193e-05,2]
[356184934,1742052918724,-500.0,8.193e-05,2]
[356184935,1742052918747,-500.0,8.193e-05,2]
[356184936,1742052918771,-500.0,8.193e-05,2]
[356184937,1742052918794,-437.38510848,8.219e-05,2]
[356184938,1742052918819,-500.0,8.219e-05,2]
[356184939,1742052918843,-500.0,8.219e-05,2]
[356184940,1742052918867,-500.0,8.219e-05,2]
[356184941,1742052918891,-500.0,8.219e-05,2]
[356184942,1742052918917,-500.0,8.219e-05,2]
[356184943,1742052918943,-500.0,8.219e-05,2]
[356184944,1742052918968,-505.47386633,8.219e-05,2]
[356184945,1742052918994,-500.0,8.219e-05,2]
[356184946,1742052919018,-507.45134707,8.219e-05,2]
[356184947,1742052919042,-500.0,8.219e-05,2]
[356184948,1742052919067,-500.0,8.219e-05,2]
[356184949,1742052919091,-508.15680173,8.219e-05,2]
[356184950,1742052919116,-500.0,8.219e-05,2]
[356184951,1742052919141,-521.28130651,8.219e-05,2]
[356184952,1742052919167,-500.0,8.219e-05,2]
[356184953,1742052919193,-500.0,8.219e-05,2]
[356184954,1742052919219,-500.0,8.219e-05,2]
[356184955,1742052919245,-500.0,8.219e-05,2]
[356184956,1742052919271,-500.0,8.219e-05,2]
[356184957,1742052919297,-500.0,8.219e-05,2]
[356184958,1742052919326,-502.2236081,8.219e-05,2]
[356184959,1742052919351,-505.40040988,8.219e-05,2]
[356184960,1742052919377,-500.0,8.219e-05,2]
[356184961,1742052919408,-500.0,8.219e-05,2]
[356184962,1742052919434,-411.50806304,8.219e-05,2]
[356184963,1742052919460,-500.0,8.219e-05,2]
[356184964,1742052919486,-500.0,8.219e-05,2]
[356184965,1742052919511,-506.13582628,8.219e-05,2]
[356184966,1742052919536,-500.0,8.219e-05,2]
[356184967,1742052919561,-500.0,8.219e-05,2]
[356184968,1742052919586,-348.57251852,8.219e-05,2]
[356184969,1742052919611,-500.0,8.219e-05,2]
[356184970,1742052919636,-504.25624946,8.219e-05,2]
[356184971,1742052919661,-681.82,8.219e-05,2]
[356184972,1742052919687,-500.0,8.219e-05,2]
[356184973,1742052919713,-500.0,8.219e-05,2]
[356184974,1742052919736,-500.0,8.219e-05,2]
[356184975,1742052919761,-500.0,8.219e-05,2]
[356184976,1742052919785,-500.0,8.219e-05,2]
[356184977,1742052919810,-500.0,8.219e-05,2]
[356184978,1742052919834,-623.27748856,8.219e-05,2]
[356184979,1742052919859,-500.0,8.219e-05,2]
[356184980,1742052919884,-500.0,8.219e-05,2]